{"text_format":"3","workbook":"xlsx","n_sheets":1,"sheets":["Inventární seznam"],"not_rendered":{"defined_names":3},"read":"whole","date_system":"1900"}

{"sheet":"Inventární seznam","index":0,"n_rows":28,"n_cols":12,"rows_kept":28,"merged":[[0,2,0,4],[0,5,0,6]]}
[null,null,"Inventární seznam",null,null,"Zvýraznit položky k doobjednání?",null,"Ano"]
[]
[null,"Položky s příznakem pro doobjednání","ID inventární položky","Název","Popis","Jednotková cena","Množství na skladě","Inventární hodnota","Doobjednávací hladina","Doba doobjednávky ve dnech","Množství doobjednávky","Ukončeno?"]
[null,{"$f":"IFERROR((InventárníSeznam[[#This Row],[Množství na skladě]]<=InventárníSeznam[[#This Row],[Doobjednávací hladina]])*(InventárníSeznam[[#This Row],[Ukončeno?]]=\"\")*hodnZvýraznění,0)","v":1},"IN0001","Položka 1","Popis 1",{"v":51,"d":"51.00 Kč"},25,{"$f":"InventárníSeznam[[#This Row],[Jednotková cena]]*InventárníSeznam[[#This Row],[Množství na skladě]]","v":{"v":1275,"d":"1,275.00 Kč"}},29,13,50,""]
[null,{"$f":"IFERROR((InventárníSeznam[[#This Row],[Množství na skladě]]<=InventárníSeznam[[#This Row],[Doobjednávací hladina]])*(InventárníSeznam[[#This Row],[Ukončeno?]]=\"\")*hodnZvýraznění,0)","v":1},"IN0002","Položka 2","Popis 2",{"v":93,"d":"93.00 Kč"},132,{"$f":"InventárníSeznam[[#This Row],[Jednotková cena]]*InventárníSeznam[[#This Row],[Množství na skladě]]","v":{"v":12276,"d":"12,276.00 Kč"}},231,4,50,""]
[null,{"$f":"IFERROR((InventárníSeznam[[#This Row],[Množství na skladě]]<=InventárníSeznam[[#This Row],[Doobjednávací hladina]])*(InventárníSeznam[[#This Row],[Ukončeno?]]=\"\")*hodnZvýraznění,0)","v":0},"IN0003","Položka 3","Popis 3",{"v":57,"d":"57.00 Kč"},151,{"$f":"InventárníSeznam[[#This Row],[Jednotková cena]]*InventárníSeznam[[#This Row],[Množství na skladě]]","v":{"v":8607,"d":"8,607.00 Kč"}},114,11,150,""]
[null,{"$f":"IFERROR((InventárníSeznam[[#This Row],[Množství na skladě]]<=InventárníSeznam[[#This Row],[Doobjednávací hladina]])*(InventárníSeznam[[#This Row],[Ukončeno?]]=\"\")*hodnZvýraznění,0)","v":0},"IN0004","Položka 4","Popis 4",{"v":19,"d":"19.00 Kč"},186,{"$f":"InventárníSeznam[[#This Row],[Jednotková cena]]*InventárníSeznam[[#This Row],[Množství na skladě]]","v":{"v":3534,"d":"3,534.00 Kč"}},158,6,50,""]
[null,{"$f":"IFERROR((InventárníSeznam[[#This Row],[Množství na skladě]]<=InventárníSeznam[[#This Row],[Doobjednávací hladina]])*(InventárníSeznam[[#This Row],[Ukončeno?]]=\"\")*hodnZvýraznění,0)","v":0},"IN0005","Položka 5","Popis 5",{"v":75,"d":"75.00 Kč"},62,{"$f":"InventárníSeznam[[#This Row],[Jednotková cena]]*InventárníSeznam[[#This Row],[Množství na skladě]]","v":{"v":4650,"d":"4,650.00 Kč"}},39,12,50,""]
[null,{"$f":"IFERROR((InventárníSeznam[[#This Row],[Množství na skladě]]<=InventárníSeznam[[#This Row],[Doobjednávací hladina]])*(InventárníSeznam[[#This Row],[Ukončeno?]]=\"\")*hodnZvýraznění,0)","v":1},"IN0006","Položka 6","Popis 6",{"v":11,"d":"11.00 Kč"},5,{"$f":"InventárníSeznam[[#This Row],[Jednotková cena]]*InventárníSeznam[[#This Row],[Množství na skladě]]","v":{"v":55,"d":"55.00 Kč"}},9,13,150,""]
[null,{"$f":"IFERROR((InventárníSeznam[[#This Row],[Množství na skladě]]<=InventárníSeznam[[#This Row],[Doobjednávací hladina]])*(InventárníSeznam[[#This Row],[Ukončeno?]]=\"\")*hodnZvýraznění,0)","v":0},"IN0007","Položka 7","Popis 7",{"v":56,"d":"56.00 Kč"},58,{"$f":"InventárníSeznam[[#This Row],[Jednotková cena]]*InventárníSeznam[[#This Row],[Množství na skladě]]","v":{"v":3248,"d":"3,248.00 Kč"}},109,7,100,"ano"]
[null,{"$f":"IFERROR((InventárníSeznam[[#This Row],[Množství na skladě]]<=InventárníSeznam[[#This Row],[Doobjednávací hladina]])*(InventárníSeznam[[#This Row],[Ukončeno?]]=\"\")*hodnZvýraznění,0)","v":1},"IN0008","Položka 8","Popis 8",{"v":38,"d":"38.00 Kč"},101,{"$f":"InventárníSeznam[[#This Row],[Jednotková cena]]*InventárníSeznam[[#This Row],[Množství na skladě]]","v":{"v":3838,"d":"3,838.00 Kč"}},162,3,100,""]
[null,{"$f":"IFERROR((InventárníSeznam[[#This Row],[Množství na skladě]]<=InventárníSeznam[[#This Row],[Doobjednávací hladina]])*(InventárníSeznam[[#This Row],[Ukončeno?]]=\"\")*hodnZvýraznění,0)","v":0},"IN0009","Položka 9","Popis 9",{"v":59,"d":"59.00 Kč"},122,{"$f":"InventárníSeznam[[#This Row],[Jednotková cena]]*InventárníSeznam[[#This Row],[Množství na skladě]]","v":{"v":7198,"d":"7,198.00 Kč"}},82,3,150,""]
[null,{"$f":"IFERROR((InventárníSeznam[[#This Row],[Množství na skladě]]<=InventárníSeznam[[#This Row],[Doobjednávací hladina]])*(InventárníSeznam[[#This Row],[Ukončeno?]]=\"\")*hodnZvýraznění,0)","v":1},"IN0010","Položka 10","Popis 10",{"v":50,"d":"50.00 Kč"},175,{"$f":"InventárníSeznam[[#This Row],[Jednotková cena]]*InventárníSeznam[[#This Row],[Množství na skladě]]","v":{"v":8750,"d":"8,750.00 Kč"}},283,8,150,""]
[null,{"$f":"IFERROR((InventárníSeznam[[#This Row],[Množství na skladě]]<=InventárníSeznam[[#This Row],[Doobjednávací hladina]])*(InventárníSeznam[[#This Row],[Ukončeno?]]=\"\")*hodnZvýraznění,0)","v":1},"IN0011","Položka 11","Popis 11",{"v":59,"d":"59.00 Kč"},176,{"$f":"InventárníSeznam[[#This Row],[Jednotková cena]]*InventárníSeznam[[#This Row],[Množství na skladě]]","v":{"v":10384,"d":"10,384.00 Kč"}},229,1,100,""]
[null,{"$f":"IFERROR((InventárníSeznam[[#This Row],[Množství na skladě]]<=InventárníSeznam[[#This Row],[Doobjednávací hladina]])*(InventárníSeznam[[#This Row],[Ukončeno?]]=\"\")*hodnZvýraznění,0)","v":1},"IN0012","Položka 12","Popis 12",{"v":18,"d":"18.00 Kč"},22,{"$f":"InventárníSeznam[[#This Row],[Jednotková cena]]*InventárníSeznam[[#This Row],[Množství na skladě]]","v":{"v":396,"d":"396.00 Kč"}},36,12,50,""]
[null,{"$f":"IFERROR((InventárníSeznam[[#This Row],[Množství na skladě]]<=InventárníSeznam[[#This Row],[Doobjednávací hladina]])*(InventárníSeznam[[#This Row],[Ukončeno?]]=\"\")*hodnZvýraznění,0)","v":1},"IN0013","Položka 13","Popis 13",{"v":26,"d":"26.00 Kč"},72,{"$f":"InventárníSeznam[[#This Row],[Jednotková cena]]*InventárníSeznam[[#This Row],[Množství na skladě]]","v":{"v":1872,"d":"1,872.00 Kč"}},102,9,100,""]
[null,{"$f":"IFERROR((InventárníSeznam[[#This Row],[Množství na skladě]]<=InventárníSeznam[[#This Row],[Doobjednávací hladina]])*(InventárníSeznam[[#This Row],[Ukončeno?]]=\"\")*hodnZvýraznění,0)","v":1},"IN0014","Položka 14","Popis 14",{"v":42,"d":"42.00 Kč"},62,{"$f":"InventárníSeznam[[#This Row],[Jednotková cena]]*InventárníSeznam[[#This Row],[Množství na skladě]]","v":{"v":2604,"d":"2,604.00 Kč"}},83,2,100,""]
[null,{"$f":"IFERROR((InventárníSeznam[[#This Row],[Množství na skladě]]<=InventárníSeznam[[#This Row],[Doobjednávací hladina]])*(InventárníSeznam[[#This Row],[Ukončeno?]]=\"\")*hodnZvýraznění,0)","v":0},"IN0015","Položka 15","Popis 15",{"v":32,"d":"32.00 Kč"},46,{"$f":"InventárníSeznam[[#This Row],[Jednotková cena]]*InventárníSeznam[[#This Row],[Množství na skladě]]","v":{"v":1472,"d":"1,472.00 Kč"}},23,15,50,""]
[null,{"$f":"IFERROR((InventárníSeznam[[#This Row],[Množství na skladě]]<=InventárníSeznam[[#This Row],[Doobjednávací hladina]])*(InventárníSeznam[[#This Row],[Ukončeno?]]=\"\")*hodnZvýraznění,0)","v":1},"IN0016","Položka 16","Popis 16",{"v":90,"d":"90.00 Kč"},96,{"$f":"InventárníSeznam[[#This Row],[Jednotková cena]]*InventárníSeznam[[#This Row],[Množství na skladě]]","v":{"v":8640,"d":"8,640.00 Kč"}},180,3,50,""]
[null,{"$f":"IFERROR((InventárníSeznam[[#This Row],[Množství na skladě]]<=InventárníSeznam[[#This Row],[Doobjednávací hladina]])*(InventárníSeznam[[#This Row],[Ukončeno?]]=\"\")*hodnZvýraznění,0)","v":0},"IN0017","Položka 17","Popis 17",{"v":97,"d":"97.00 Kč"},57,{"$f":"InventárníSeznam[[#This Row],[Jednotková cena]]*InventárníSeznam[[#This Row],[Množství na skladě]]","v":{"v":5529,"d":"5,529.00 Kč"}},98,12,50,"Ano"]
[null,{"$f":"IFERROR((InventárníSeznam[[#This Row],[Množství na skladě]]<=InventárníSeznam[[#This Row],[Doobjednávací hladina]])*(InventárníSeznam[[#This Row],[Ukončeno?]]=\"\")*hodnZvýraznění,0)","v":1},"IN0018","Položka 18","Popis 18",{"v":12,"d":"12.00 Kč"},6,{"$f":"InventárníSeznam[[#This Row],[Jednotková cena]]*InventárníSeznam[[#This Row],[Množství na skladě]]","v":{"v":72,"d":"72.00 Kč"}},7,13,50,""]
[null,{"$f":"IFERROR((InventárníSeznam[[#This Row],[Množství na skladě]]<=InventárníSeznam[[#This Row],[Doobjednávací hladina]])*(InventárníSeznam[[#This Row],[Ukončeno?]]=\"\")*hodnZvýraznění,0)","v":1},"IN0019","Položka 19","Popis 19",{"v":82,"d":"82.00 Kč"},143,{"$f":"InventárníSeznam[[#This Row],[Jednotková cena]]*InventárníSeznam[[#This Row],[Množství na skladě]]","v":{"v":11726,"d":"11,726.00 Kč"}},164,12,150]
[null,{"$f":"IFERROR((InventárníSeznam[[#This Row],[Množství na skladě]]<=InventárníSeznam[[#This Row],[Doobjednávací hladina]])*(InventárníSeznam[[#This Row],[Ukončeno?]]=\"\")*hodnZvýraznění,0)","v":0},"IN0020","Položka 20","Popis 20",{"v":16,"d":"16.00 Kč"},124,{"$f":"InventárníSeznam[[#This Row],[Jednotková cena]]*InventárníSeznam[[#This Row],[Množství na skladě]]","v":{"v":1984,"d":"1,984.00 Kč"}},113,14,50,""]
[null,{"$f":"IFERROR((InventárníSeznam[[#This Row],[Množství na skladě]]<=InventárníSeznam[[#This Row],[Doobjednávací hladina]])*(InventárníSeznam[[#This Row],[Ukončeno?]]=\"\")*hodnZvýraznění,0)","v":0},"IN0021","Položka 21","Popis 21",{"v":19,"d":"19.00 Kč"},112,{"$f":"InventárníSeznam[[#This Row],[Jednotková cena]]*InventárníSeznam[[#This Row],[Množství na skladě]]","v":{"v":2128,"d":"2,128.00 Kč"}},75,11,50,""]
[null,{"$f":"IFERROR((InventárníSeznam[[#This Row],[Množství na skladě]]<=InventárníSeznam[[#This Row],[Doobjednávací hladina]])*(InventárníSeznam[[#This Row],[Ukončeno?]]=\"\")*hodnZvýraznění,0)","v":0},"IN0022","Položka 22","Popis 22",{"v":24,"d":"24.00 Kč"},182,{"$f":"InventárníSeznam[[#This Row],[Jednotková cena]]*InventárníSeznam[[#This Row],[Množství na skladě]]","v":{"v":4368,"d":"4,368.00 Kč"}},132,15,150,""]
[null,{"$f":"IFERROR((InventárníSeznam[[#This Row],[Množství na skladě]]<=InventárníSeznam[[#This Row],[Doobjednávací hladina]])*(InventárníSeznam[[#This Row],[Ukončeno?]]=\"\")*hodnZvýraznění,0)","v":0},"IN0023","Položka 23","Popis 23",{"v":29,"d":"29.00 Kč"},106,{"$f":"InventárníSeznam[[#This Row],[Jednotková cena]]*InventárníSeznam[[#This Row],[Množství na skladě]]","v":{"v":3074,"d":"3,074.00 Kč"}},142,1,150,"Ano"]
[null,{"$f":"IFERROR((InventárníSeznam[[#This Row],[Množství na skladě]]<=InventárníSeznam[[#This Row],[Doobjednávací hladina]])*(InventárníSeznam[[#This Row],[Ukončeno?]]=\"\")*hodnZvýraznění,0)","v":0},"IN0024","Položka 24","Popis 24",{"v":75,"d":"75.00 Kč"},173,{"$f":"InventárníSeznam[[#This Row],[Jednotková cena]]*InventárníSeznam[[#This Row],[Množství na skladě]]","v":{"v":12975,"d":"12,975.00 Kč"}},127,9,100,""]
[null,{"$f":"IFERROR((InventárníSeznam[[#This Row],[Množství na skladě]]<=InventárníSeznam[[#This Row],[Doobjednávací hladina]])*(InventárníSeznam[[#This Row],[Ukončeno?]]=\"\")*hodnZvýraznění,0)","v":0},"IN0025","Položka 25","Popis 25",{"v":14,"d":"14.00 Kč"},28,{"$f":"InventárníSeznam[[#This Row],[Jednotková cena]]*InventárníSeznam[[#This Row],[Množství na skladě]]","v":{"v":392,"d":"392.00 Kč"}},21,8,50,""]